bitfinex/quotes_SOLUSD_20241231
["timestamp","ask_amount","ask_price","bid_price","bid_amount"]
[1735630831911,20.0,190.15,190.09,9.61766703]
[1735630832720,20.0,190.11,190.08,9.61766703]
[1735630833726,21.6526,190.19,190.09,9.61766703]
[1735630833914,21.6526,190.19,190.1,9.61766703]
[1735630834221,20.0,190.15,190.09,9.61766703]
[1735630840321,1.6526,190.19,190.12,9.61766703]
[1735630840819,20.0,190.15,190.12,9.61766703]
[1735630843427,1.6526,190.19,190.12,9.61766703]
[1735630843607,21.6526,190.19,190.13,9.61766703]
[1735630847134,21.6526,190.19,190.12,9.61766703]
[1735630847835,21.6526,190.19,190.13,9.61766703]
[1735630848519,20.0,190.19,190.13,9.61766703]
[1735630850531,20.0,190.19,190.15,9.61766703]
[1735630850739,1.5626,190.23,190.16,9.61766703]
[1735630851037,20.0,190.19,190.16,9.61766703]
[1735630851336,20.0,190.19,190.15,9.61766703]
[1735630854021,20.0,190.19,190.11,2.30707662]
[1735630854217,20.0,190.19,190.15,9.61766703]
[1735630859240,1.5626,190.23,190.15,9.61766703]
[1735630859440,1.5626,190.23,190.11,2.30707662]
[1735630859441,1.5626,190.23,190.17,9.61766703]
[1735630864735,6.2644,190.27,190.17,9.61766703]
[1735630864927,6.2644,190.27,190.19,9.61766703]
[1735630865131,23.776884,190.26,190.19,9.61766703]
[1735630865442,20.0,190.23,190.19,9.61766703]
[1735630867240,20.0,190.24,190.19,9.61766703]
[1735630867445,20.0,190.24,190.22,9.61766703]
[1735630868645,1.5863,190.28,190.22,9.61766703]
[1735630869948,20.0,190.29,190.23,9.61766703]
[1735630870144,1.5863,190.32,190.23,9.61766703]
[1735630870346,1.5863,190.32,190.25,9.61766703]
[1735630870843,21.5863,190.32,190.25,9.61766703]
[1735630873045,1.5863,190.32,190.25,9.61766703]
[1735630873546,21.5863,190.32,190.25,9.61766703]
[1735630875333,20.0,190.32,190.27,9.61766703]
[1735630875536,20.0,190.32,190.28,9.61766703]
[1735630875726,20.0,190.32,190.26,9.61766703]
[1735630876548,20.0,190.32,190.27,9.61766703]
[1735630876725,20.0,190.32,190.28,9.61766703]
[1735630876926,1.6657,190.37,190.29,9.61766703]
[1735630877649,21.6657,190.37,190.29,9.61766703]
[1735630877830,21.6657,190.37,190.3,9.61766703]
[1735630878043,6.6551,190.4,190.32,9.61766703]
[1735630878344,20.0,190.37,190.32,9.61766703]
[1735630879625,20.0,190.37,190.33,9.61766703]
[1735630879842,1.6657,190.42,190.35,9.61766703]
[1735630880349,21.6657,190.42,190.35,9.61766703]
[1735630881650,20.0,190.38,190.34,9.61766703]
[1735630881847,20.0,190.38,190.33,9.61766703]
[1735630882750,20.0,190.38,190.34,9.61766703]
[1735630882950,20.0,190.38,190.35,9.61766703]
[1735630883749,1.6657,190.42,190.35,9.61766703]
[1735630883943,21.6657,190.42,190.36,9.61766703]
[1735630884137,1.6657,190.42,190.37,9.61766703]
[1735630884652,20.0,190.42,190.38,9.61766703]
[1735630885248,20.0,190.42,190.39,9.61766703]
[1735630885450,6.6551,190.45,190.39,9.61766703]
[1735630885653,20.0,190.42,190.39,9.61766703]
[1735630886529,43.776884,190.46,190.35,0.78771175]
[1735630886728,43.776884,190.46,190.39,9.61766703]
[1735630887171,20.0,190.46,190.39,9.61766703]
[1735630887345,20.0,190.46,190.4,9.61766703]
[1735630887650,20.0,190.45,190.41,9.61766703]
[1735630889143,20.0,190.45,190.4,9.61766703]
[1735630889455,20.0,190.45,190.39,9.61766703]
[1735630891336,8.1418,190.46,190.32,1.5646]
[1735630891533,20.0,190.43,190.36,9.61766703]
[1735630891852,20.0,190.43,190.32,1.5646]
[1735630892052,20.0,190.43,190.36,9.61766703]
[1735630892455,20.0,190.39,190.36,9.61766703]
[1735630895458,20.0,190.43,190.37,9.61766703]
[1735630896859,20.0,190.43,190.38,9.61766703]
[1735630897029,20.0,190.43,190.39,9.61766703]
[1735630900058,1.5232,190.46,190.39,9.61766703]
[1735630900257,1.5232,190.46,190.4,9.61766703]
[1735630901459,1.5232,190.46,190.39,9.61766703]
[1735630904263,1.5232,190.46,190.4,9.61766703]
[1735630905365,1.5232,190.46,190.41,9.61766703]
[1735630905666,20.0,190.47,190.41,9.61766703]
[1735630905843,1.5938,190.51,190.44,9.61766703]
[1735630906368,1.5938,190.51,190.45,9.61766703]
[1735630906738,21.5938,190.51,190.45,9.61766703]
[1735630907662,6.4339,190.54,190.46,9.61766703]
[1735630908266,20.0,190.51,190.46,9.61766703]
[1735630908670,20.0,190.51,190.4,0.78743122]
[1735630908847,20.0,190.51,190.45,9.61766703]
[1735630911374,20.0,190.51,190.44,9.61766703]
[1735630913752,20.0,190.51,190.45,9.61766703]
[1735630914256,20.0,190.54,190.39,23.776884]
[1735630914455,20.0,190.54,190.4,0.78738592]
[1735630914655,20.0,190.54,190.47,9.61766703]
[1735630914978,20.0,190.54,190.48,9.61766703]
[1735630917657,20.0,190.54,190.4,0.78738592]
[1735630917876,20.0,190.54,190.47,9.61766703]
[1735630918992,20.0,190.5,190.4,0.78738592]
[1735630919153,20.0,190.5,190.45,9.61766703]
[1735630921775,20.0,190.5,190.44,9.61766703]
[1735630922877,20.0,190.5,190.45,9.61766703]
[1735630924281,20.0,190.5,190.38,0.78747064]
[1735630924484,20.0,190.5,190.44,9.61766703]
[1735630927178,20.0,190.46,190.4,9.61766703]
[1735630927555,25.277084,190.49,190.4,9.61766703]
[1735630927966,20.0,190.47,190.4,9.61766703]
[1735630928381,20.0,190.46,190.4,9.61766703]
[1735630928878,1.5002,190.49,190.4,9.61766703]
[1735630929077,20.0,190.46,190.33,7.8731]
[1735630929286,20.0,190.46,190.39,9.61766703]
[1735630929495,20.0,190.46,190.35,38.47066812]
[1735630929496,20.0,190.46,190.4,9.61766703]
[1735630929660,20.0,190.45,190.4,9.61766703]
[1735630930683,43.776884,190.46,190.4,9.61766703]
[1735630931054,43.776884,190.46,190.36,0.78773913]
[1735630931259,43.776884,190.46,190.39,9.61766703]
[1735630932271,43.776884,190.46,190.38,9.61766703]
[1735630932572,43.776884,190.46,190.34,0.78776114]
[1735630932765,43.776884,190.46,190.38,9.61766703]
[1735630934278,43.776884,190.46,190.33,7.8731]
[1735630934586,43.776884,190.46,190.35,9.61766703]
[1735630937782,43.776884,190.46,190.36,9.61766703]
[1735630940390,43.776884,190.46,190.35,9.61766703]
[1735630943381,43.776884,190.46,190.36,9.61766703]
[1735630954010,43.776884,190.46,190.33,1.5141]
[1735630954215,43.776884,190.46,190.35,9.61766703]
[1735630954580,43.776884,190.46,190.34,9.61766703]
[1735630958402,43.776884,190.46,190.33,11.13176703]
[1735630959609,20.0,190.41,190.29,6.393]
[1735630959909,23.776884,190.36,190.29,9.61766703]
[1735630960283,20.0,190.41,190.29,9.61766703]
[1735630960487,43.776884,190.41,190.3,9.61766703]
[1735630962913,43.776884,190.41,190.28,1.5126]
[1735630963093,43.776884,190.41,190.3,9.61766703]
[1735630965108,43.776884,190.41,190.32,9.61766703]
[1735630967114,20.0,190.41,190.33,9.61766703]
[1735630967316,7.953,190.45,190.35,9.61766703]
[1735630967521,7.953,190.45,190.36,9.61766703]
[1735630967899,20.0,190.41,190.36,9.61766703]
[1735630968416,23.776884,190.44,190.36,9.61766703]
[1735630968712,23.776884,190.44,190.32,6.5813]
[1735630968713,23.776884,190.44,190.37,9.61766703]
[1735630970014,20.0,190.41,190.37,9.61766703]
[1735630970390,20.0,190.41,190.38,9.61766703]
[1735630970721,20.0,190.41,190.4,9.61766703]
[1735630971215,20.0,190.41,190.37,9.61766703]
[1735630972017,20.0,190.41,190.33,1.5615]
[1735630972212,20.0,190.41,190.37,9.61766703]
[1735630973925,1.6163,190.45,190.4,9.61766703]
[1735630974217,1.6163,190.45,190.41,9.61766703]
[1735630974423,1.6163,190.45,190.4,9.61766703]
[1735630974936,20.0,190.47,190.42,9.61766703]
[1735630976525,20.0,190.47,190.44,9.61766703]
[1735630977554,1.6112,190.5,190.45,9.61766703]
[1735630978224,1.6112,190.5,190.39,1.5375]
[1735630978399,1.6112,190.5,190.45,9.61766703]
[1735630979925,20.0,190.52,190.45,9.61766703]
[1735630980311,20.0,190.48,190.43,9.61766703]
[1735630986747,20.0,190.52,190.44,9.61766703]
[1735630987427,23.776884,190.51,190.44,9.61766703]
[1735630987617,20.0,190.48,190.43,9.61766703]
[1735630988913,20.0,190.48,190.42,9.61766703]
[1735630989433,20.0,190.48,190.43,9.61766703]
[1735630992230,8.1589,190.55,190.44,9.61766703]
[1735630992438,8.1589,190.55,190.45,9.61766703]
[1735630992439,20.0,190.52,190.45,9.61766703]
[1735630993537,20.0,190.52,190.44,9.61766703]
[1735630993834,20.0,190.52,190.45,9.61766703]
[1735630994735,20.0,190.52,190.46,9.61766703]
[1735630999438,20.0,190.52,190.43,9.61766703]
[1735630999939,20.0,190.52,190.44,9.61766703]
[1735631000742,20.0,190.52,190.45,9.61766703]
[1735631002933,20.0,190.52,190.39,2.32513351]
[1735631003137,20.0,190.52,190.45,9.61766703]
[1735631004425,20.0,190.52,190.39,2.32513351]
[1735631004624,20.0,190.52,190.45,9.61766703]
[1735631007447,20.0,190.52,190.46,9.61766703]
[1735631009870,8.1589,190.55,190.48,9.61766703]
[1735631010147,8.1589,190.55,190.49,9.61766703]
[1735631010353,20.0,190.52,190.49,9.61766703]
[1735631010646,20.0,190.52,190.5,9.61766703]
[1735631010858,20.0,190.57,190.51,9.61766703]
[1735631011427,23.776884,190.59,190.51,9.61766703]
[1735631012129,20.0,190.56,190.51,9.61766703]
[1735631013956,20.0,190.56,190.5,9.61766703]
[1735631017351,7.8194,190.6,190.51,9.61766703]
[1735631017739,20.0,190.56,190.5,9.61766703]
[1735631022671,20.0,190.56,190.49,9.61766703]
[1735631026468,20.0,190.56,190.45,1.5988]
[1735631026768,20.0,190.52,190.45,1.5988]
[1735631026969,20.0,190.52,190.46,9.61766703]
[1735631027978,20.0,190.52,190.47,9.61766703]
[1735631028969,20.0,190.52,190.48,9.61766703]
[1735631030465,20.0,190.57,190.49,9.61766703]
[1735631030863,20.0,190.57,190.5,9.61766703]
[1735631034783,20.0,190.57,190.51,9.61766703]
[1735631034984,20.0,190.57,190.52,9.61766703]
[1735631038087,20.0,190.57,190.51,9.61766703]
[1735631040196,20.0,190.57,190.48,9.61766703]
[1735631040594,20.0,190.53,190.45,1.5988]
[1735631040787,20.0,190.53,190.48,9.61766703]
[1735631042591,20.0,190.53,190.49,9.61766703]
[1735631044098,20.0,190.53,190.48,9.61766703]
[1735631049779,20.0,190.57,190.49,9.61766703]
[1735631050002,20.0,190.57,190.5,9.61766703]
[1735631051399,20.0,190.53,190.5,9.61766703]
[1735631051606,20.0,190.53,190.49,9.61766703]
[1735631052213,20.0,190.56,190.5,9.61766703]
[1735631054407,20.0,190.56,190.49,9.61766703]
[1735631054707,20.0,190.56,190.5,9.61766703]
[1735631057107,20.0,190.56,190.45,1.5988]
[1735631057307,1.5589,190.55,190.41,0.78740941]
[1735631057507,20.0,190.51,190.41,0.78740941]
[1735631057700,20.0,190.51,190.46,9.61766703]
[1735631058217,20.0,190.45,190.4,8.07179147]
[1735631058396,20.0,190.45,190.38,9.61766703]
[1735631058907,20.0,190.45,190.37,17.6894585]
[1735631059094,30.390584,190.44,190.37,8.07179147]
[1735631059294,6.6137,190.44,190.38,9.61766703]
[1735631060909,20.0,190.45,190.38,9.61766703]
[1735631061111,20.0,190.45,190.39,9.61766703]
[1735631061807,20.0,190.45,190.38,9.61766703]
[1735631062615,20.0,190.45,190.37,9.61766703]
[1735631064416,23.776884,190.44,190.37,9.61766703]
[1735631065416,20.0,190.45,190.37,9.61766703]
[1735631065718,20.0,190.45,190.38,9.61766703]
[1735631066311,20.0,190.45,190.39,9.61766703]
[1735631067418,20.0,190.45,190.41,9.61766703]
[1735631067593,20.0,190.45,190.42,9.61766703]
[1735631067799,1.5589,190.49,190.42,9.61766703]
[1735631068019,1.5589,190.49,190.43,9.61766703]
[1735631069221,1.5589,190.49,190.42,9.61766703]
[1735631069523,20.0,190.45,190.41,9.61766703]
[1735631071340,20.0,190.45,190.36,1.6279]
[1735631071503,20.0,190.41,190.37,9.61766703]
[1735631071704,20.0,190.41,190.31,2.30555257]
[1735631072026,20.0,190.41,190.37,9.61766703]
[1735631072722,20.0,190.41,190.36,9.61766703]
[1735631073018,23.776884,190.4,190.34,9.61766703]
[1735631073222,20.0,190.37,190.34,9.61766703]
[1735631073421,20.0,190.37,190.33,9.61766703]
[1735631073625,21.5296,190.42,190.34,9.61766703]
[1735631073805,21.5296,190.42,190.35,9.61766703]
[1735631075910,20.0,190.38,190.33,9.61766703]
[1735631076311,20.0,190.38,190.27,2.30555286]
[1735631076518,20.0,190.38,190.31,9.61766703]
[1735631078014,20.0,190.38,190.32,9.61766703]
[1735631084233,20.0,190.38,190.34,9.61766703]
[1735631087524,1.5296,190.42,190.34,9.61766703]
[1735631087940,21.5296,190.42,190.34,9.61766703]
[1735631088616,21.5296,190.42,190.33,9.61766703]
[1735631088814,21.5296,190.42,190.27,2.30576397]
[1735631088815,21.5296,190.42,190.34,9.61766703]
[1735631093642,17.82,190.35,190.34,9.61766703]
[1735631096444,17.82,190.35,190.27,2.30576397]
[1735631096646,17.82,190.35,190.33,9.61766703]
[1735631096820,17.82,190.35,190.32,9.61766703]
[1735631097952,17.82,190.35,190.27,1.5176]
[1735631098149,17.82,190.35,190.31,9.61766703]
[1735631100149,17.82,190.35,190.32,9.61766703]
[1735631100832,17.82,190.35,190.27,1.5176]
[1735631101045,17.82,190.35,190.3,9.61766703]
[1735631101344,17.82,190.35,190.29,9.61766703]
[1735631101534,20.0,190.32,190.22,2.34373195]
[1735631101734,20.0,190.32,190.26,9.61766703]
[1735631101929,20.0,190.32,190.25,9.61766703]
[1735631102462,20.0,190.28,190.19,0.78833706]
[1735631102637,20.0,190.28,190.24,9.61766703]
[1735631102830,20.0,190.28,190.23,9.61766703]
[1735631103033,20.0,190.28,190.24,9.61766703]
[1735631103767,20.0,190.28,190.18,1.5555]
[1735631103768,20.0,190.29,190.26,9.61766703]
[1735631104640,20.0,190.29,190.27,9.61766703]
[1735631104840,19.4848,190.35,190.28,9.61766703]
[1735631105047,19.4848,190.35,190.3,9.61766703]
[1735631105263,20.0,190.32,190.29,9.61766703]
[1735631105771,19.4848,190.35,190.31,9.61766703]
[1735631109750,20.0,190.32,190.31,9.61766703]
[1735631109968,20.0,190.32,190.29,9.61766703]
[1735631110272,20.0,190.32,190.28,9.61766703]
[1735631110569,17.82,190.3,190.28,9.61766703]
[1735631110773,20.0,190.27,190.24,9.61766703]
[1735631110951,20.0,190.27,190.23,9.61766703]
[1735631111152,20.0,190.27,190.22,9.61766703]
[1735631112178,20.0,190.27,190.23,9.61766703]
[1735631113355,20.0,190.27,190.22,9.61766703]
[1735631114075,20.0,190.27,190.2,9.61766703]
[1735631115464,20.0,190.27,190.21,9.61766703]
[1735631116076,20.0,190.27,190.2,9.61766703]
[1735631116461,8.20233297,190.2,190.14,2.38687932]
[1735631116662,8.20233297,190.2,190.19,9.61766703]
[1735631117674,8.20233297,190.2,190.14,0.78857932]
[1735631117981,8.20233297,190.2,190.17,9.61766703]
[1735631118152,8.20233297,190.2,190.12,0.78858119]
[1735631118359,8.20233297,190.2,190.16,9.61766703]
[1735631118662,8.20233297,190.2,190.15,9.61766703]
[1735631119881,8.20233297,190.2,190.16,9.61766703]
[1735631120180,8.20233297,190.2,190.17,9.61766703]
[1735631120382,20.0,190.18,190.17,9.61766703]
[1735631120694,20.0,190.18,190.16,9.61766703]
[1735631122188,20.0,190.17,190.14,9.61766703]
[1735631123775,20.0,190.19,190.14,1.41533406]
[1735631125466,20.0,190.19,190.15,9.61766703]
[1735631125666,20.0,190.19,190.14,9.61766703]
[1735631127900,20.0,190.19,190.09,2.38705255]
[1735631128066,20.0,190.19,190.07,0.78887183]
[1735631128386,20.0,190.19,190.11,9.61766703]
[1735631130492,20.0,190.19,190.12,9.61766703]
[1735631132889,20.0,190.19,190.04,1.6084]
[1735631133068,20.0,190.15,190.04,1.6084]
[1735631133275,1.6116,190.14,190.09,9.61766703]
[1735631134197,1.6116,190.14,190.1,9.61766703]
[1735631135796,1.6116,190.14,190.03,0.7889367]
[1735631135797,1.6116,190.14,190.11,9.61766703]
[1735631136091,13.1553,190.23,190.13,9.61766703]
[1735631136092,1.6116,190.18,190.13,9.61766703]
[1735631136285,1.6116,190.18,190.16,9.61766703]
[1735631136475,6.6618,190.2,190.16,9.61766703]
[1735631140801,20.0,190.17,190.16,9.61766703]
[1735631146434,20.0,190.17,190.15,9.61766703]
[1735631146923,21.6116,190.22,190.16,9.61766703]
[1735631147122,21.6116,190.22,190.17,9.61766703]
[1735631147807,21.6116,190.22,190.16,9.61766703]
[1735631150308,21.6116,190.22,190.18,9.61766703]
[1735631150506,21.6116,190.22,190.19,9.61766703]
[1735631151500,1.6116,190.22,190.2,9.61766703]
[1735631152118,6.448,190.25,190.21,9.61766703]
[1735631152424,1.6343,190.26,190.22,9.61766703]
[1735631152727,6.448,190.29,190.24,9.61766703]
[1735631152939,6.448,190.29,190.25,9.61766703]
[1735631153228,1.6343,190.31,190.27,9.61766703]
[1735631153430,1.6343,190.31,190.28,9.61766703]
[1735631154096,1.6343,190.31,190.29,9.61766703]
[1735631154314,6.448,190.34,190.3,9.61766703]
[1735631155121,1.6343,190.35,190.31,9.61766703]
[1735631155623,1.6343,190.35,190.32,9.61766703]
[1735631156422,21.6343,190.35,190.32,9.61766703]
[1735631157003,1.6343,190.35,190.32,9.61766703]
[1735631157616,21.6343,190.35,190.32,9.61766703]
[1735631159625,21.6343,190.35,190.31,9.61766703]
[1735631160604,20.0,190.35,190.31,9.61766703]
[1735631163125,20.0,190.35,190.27,0.78806687]
[1735631163324,20.0,190.35,190.32,9.61766703]
[1735631163525,20.0,190.35,190.33,9.61766703]
[1735631163716,1.6411,190.4,190.27,0.78806687]
[1735631163717,1.6411,190.4,190.34,9.61766703]
[1735631163916,21.6411,190.4,190.36,9.61766703]
[1735631164614,1.6411,190.4,190.37,9.61766703]
[1735631165121,6.5616,190.43,190.37,9.61766703]
[1735631165326,20.0,190.4,190.37,9.61766703]
[1735631165834,20.0,190.4,190.38,9.61766703]
[1735631166134,1.549,190.44,190.39,9.61766703]
[1735631166310,21.549,190.44,190.39,9.61766703]
[1735631168130,21.549,190.44,190.4,9.61766703]
[1735631169628,21.549,190.44,190.39,9.61766703]
[1735631170237,21.549,190.44,190.4,9.61766703]
[1735631171039,21.549,190.44,190.39,9.61766703]
[1735631173243,21.549,190.44,190.36,9.61766703]
[1735631174018,21.549,190.44,190.37,9.61766703]
[1735631175141,21.549,190.44,190.36,9.61766703]
[1735631176123,21.549,190.44,190.37,9.61766703]
[1735631176323,21.549,190.44,190.38,9.61766703]
[1735631177845,21.549,190.44,190.37,9.61766703]
[1735631178447,21.549,190.44,190.38,9.61766703]
[1735631180133,21.549,190.44,190.39,9.61766703]
[1735631181349,21.549,190.44,190.38,9.61766703]
[1735631182749,21.549,190.44,190.33,0.78775475]
[1735631182950,21.549,190.44,190.35,9.61766703]
[1735631183248,21.549,190.44,190.36,9.61766703]
[1735631186152,21.549,190.44,190.32,0.78786206]
[1735631186344,21.549,190.44,190.36,9.61766703]
[1735631186541,20.0,190.4,190.28,1.5544]
[1735631186732,20.0,190.4,190.33,9.61766703]
[1735631186933,21.549,190.44,190.36,9.61766703]
[1735631187334,21.549,190.44,190.37,9.61766703]
[1735631190062,21.549,190.44,190.38,9.61766703]
[1735631190230,21.549,190.44,190.39,9.61766703]
[1735631190960,21.549,190.44,190.4,9.61766703]
[1735631191472,6.5616,190.47,190.42,9.61766703]
[1735631191651,20.0,190.44,190.42,9.61766703]
[1735631193861,6.5616,190.47,190.43,9.61766703]
[1735631194161,1.5196,190.49,190.43,9.61766703]
[1735631194460,21.5196,190.49,190.43,9.61766703]
[1735631194649,21.5196,190.49,190.44,9.61766703]
[1735631195762,21.5196,190.49,190.43,9.61766703]
[1735631197338,21.5196,190.49,190.42,9.61766703]
[1735631198459,21.5196,190.49,190.41,9.61766703]
[1735631200373,20.0,190.45,190.4,9.61766703]
[1735631201268,26.2865,190.45,190.37,9.61766703]
[1735631203066,26.2865,190.45,190.31,0.78788475]
[1735631203067,1.514,190.44,190.31,0.78788475]
[1735631203246,20.0,190.4,190.27,0.78794134]
[1735631203449,20.0,190.4,190.33,9.61766703]
[1735631203645,20.0,190.4,190.34,9.61766703]
[1735631204543,20.0,190.4,190.35,9.61766703]
[1735631204742,1.514,190.44,190.36,9.61766703]
[1735631205061,1.514,190.44,190.37,9.61766703]
[1735631205364,20.0,190.42,190.36,9.61766703]
[1735631209766,20.0,190.42,190.37,9.61766703]
[1735631210886,20.0,190.42,190.38,9.61766703]
[1735631212985,20.0,190.42,190.39,9.61766703]
[1735631213495,20.0,190.42,190.4,9.61766703]
[1735631214589,1.514,190.49,190.41,9.61766703]
[1735631214787,20.0,190.47,190.42,9.61766703]
[1735631218493,20.0,190.47,190.41,9.61766703]
[1735631221616,20.0,190.47,190.4,9.61766703]
[1735631222308,20.0,190.47,190.39,9.61766703]
[1735631222682,20.0,190.47,190.4,9.61766703]
[1735631223623,20.0,190.47,190.41,9.61766703]
[1735631223924,20.0,190.47,190.4,9.61766703]
[1735631225512,20.0,190.47,190.41,9.61766703]
[1735631226511,20.0,190.47,190.4,9.61766703]
[1735631227201,20.0,190.47,190.41,9.61766703]
[1735631227597,20.0,190.47,190.43,9.61766703]
[1735631229700,20.0,190.47,190.41,9.61766703]
[1735631229895,20.0,190.47,190.42,9.61766703]
[1735631232496,20.0,190.47,190.41,9.61766703]
[1735631236519,20.0,190.43,190.32,2.40373799]
[1735631236715,20.0,190.43,190.38,9.61766703]
[1735631238025,20.0,190.43,190.39,9.61766703]
[1735631238332,20.0,190.43,190.32,2.40373799]
[1735631238508,1.5087,190.42,190.29,8.85967559]
[1735631238713,1.5087,190.42,190.35,9.61766703]
[1735631239429,1.5087,190.42,190.36,9.61766703]
[1735631242326,1.5087,190.42,190.37,9.61766703]
[1735631245732,1.5087,190.42,190.38,9.61766703]
[1735631246036,1.5087,190.42,190.4,9.61766703]
[1735631246609,1.6244,190.46,190.41,9.61766703]
[1735631246817,1.6244,190.46,190.43,9.61766703]
[1735631247018,20.0,190.45,190.43,9.61766703]
[1735631248242,1.6244,190.46,190.43,9.61766703]
[1735631250941,20.0,190.45,190.43,9.61766703]
[1735631251141,20.0,190.45,190.44,9.61766703]
[1735631251546,20.0,190.45,190.43,9.61766703]
[1735631251725,20.0,190.45,190.41,9.61766703]
[1735631251923,20.0,190.45,190.4,9.61766703]
[1735631253960,20.0,190.45,190.39,9.61766703]
[1735631254362,20.0,190.41,190.37,9.61766703]
[1735631255331,20.0,190.41,190.38,9.61766703]
[1735631255759,20.0,190.41,190.39,9.61766703]
[1735631256162,6.5524,190.48,190.39,9.61766703]
[1735631256331,20.0,190.45,190.39,9.61766703]
[1735631257860,20.0,190.41,190.3,0.7878997]
[1735631258034,20.0,190.41,190.36,9.61766703]
[1735631258432,20.0,190.41,190.37,9.61766703]
[1735631258658,20.0,190.41,190.36,9.61766703]
[1735631261372,20.0,190.41,190.28,0.78800637]
[1735631261671,20.0,190.37,190.33,9.61766703]
[1735631263178,20.0,190.37,190.34,9.61766703]
[1735631264675,20.0,190.37,190.35,9.61766703]
[1735631265668,6.2144,190.41,190.36,9.61766703]
[1735631265848,10.9844113,190.47,190.4,9.61766703]
[1735631266048,7.03053932,190.47,190.43,9.61766703]
[1735631266465,20.0,190.44,190.43,9.61766703]
[1735631267193,20.0,190.46,190.43,9.61766703]
[1735631267975,20.0,190.46,190.42,9.61766703]
[1735631268765,20.0,190.46,190.43,9.61766703]
[1735631270327,20.0,190.46,190.42,9.61766703]
[1735631272597,20.0,190.46,190.44,9.61766703]
[1735631272904,20.0,190.5,190.44,9.61766703]
[1735631273201,20.0,190.48,190.45,9.61766703]
[1735631273579,20.0,190.5,190.45,9.61766703]
[1735631278499,20.0,190.5,190.44,9.61766703]
[1735631279086,20.0,190.5,190.43,9.61766703]
[1735631280201,20.0,190.5,190.42,9.61766703]
[1735631280997,20.0,190.5,190.43,9.61766703]
[1735631283396,20.0,190.5,190.42,9.61766703]
[1735631283897,20.0,190.5,190.43,9.61766703]
[1735631284205,20.0,190.5,190.44,9.61766703]
[1735631284699,1.5647,190.52,190.45,9.61766703]
[1735631284993,1.5647,190.52,190.46,9.61766703]
[1735631287296,1.5647,190.52,190.45,9.61766703]
[1735631288290,1.5647,190.52,190.41,7.8893]
[1735631288499,1.5647,190.52,190.45,9.61766703]
[1735631290624,20.0,190.48,190.44,9.61766703]
[1735631292421,1.5647,190.52,190.44,9.61766703]
[1735631292788,20.0,190.48,190.44,9.61766703]
[1735631296015,1.5647,190.52,190.44,9.61766703]
[1735631296315,1.5647,190.52,190.45,9.61766703]
[1735631297119,1.5647,190.52,190.46,9.61766703]
[1735631297507,1.5647,190.52,190.47,9.61766703]
[1735631298722,1.5647,190.52,190.46,9.61766703]
[1735631299023,1.5647,190.52,190.44,9.61766703]
[1735631299521,20.0,190.48,190.44,9.61766703]
[1735631300617,1.5647,190.52,190.45,9.61766703]
[1735631300795,1.5647,190.52,190.44,9.61766703]
[1735631301194,20.0,190.48,190.41,1.6446]
[1735631301507,20.0,190.48,190.36,1.5717]
[1735631301508,20.0,190.44,190.36,1.5717]
[1735631301705,20.0,190.44,190.41,9.61766703]
[1735631301913,20.0,190.48,190.43,9.61766703]
[1735631303820,20.0,190.48,190.36,1.5717]
[1735631304004,20.0,190.48,190.4,9.61766703]
[1735631304219,20.0,190.48,190.41,9.61766703]
[1735631306026,20.0,190.48,190.42,9.61766703]
[1735631308035,20.0,190.48,190.41,9.61766703]
[1735631311945,20.0,190.48,190.42,9.61766703]
[1735631314341,20.0,190.48,190.43,9.61766703]
[1735631314748,20.0,190.48,190.36,2.35942898]
[1735631314943,20.0,190.48,190.43,9.61766703]
[1735631316846,20.0,190.48,190.44,9.61766703]
[1735631317444,20.0,190.48,190.43,9.61766703]
[1735631321041,20.0,190.48,190.45,9.61766703]